{"text_format":"1","workbook":"xlsx","n_sheets":1,"sheets":["様式701-01(2)"],"not_rendered":{"charts":0,"images":7,"macros":1,"external_links":0,"defined_names":1,"comments":0,"pivot_tables":0},"unopened":[],"bounds":{"document_bytes":16777216,"sheet_cells":100000,"rows_first":2000,"rows_last":500,"rows_between":2000,"halvings":0,"cell_chars":16384,"cell_head_chars":4096},"cells_cut":0,"cells_raw":0,"read":"whole","date_system":"1900"}

{"sheet":"様式701-01(2)","index":0,"n_rows":69,"n_cols":70,"rows_kept":69,"cut":false,"hidden":false,"merged":[[0,22,9,33],[30,12,30,19],[18,24,18,33],[21,8,21,16],[21,18,21,22],[3,0,5,21],[35,8,35,11],[33,1,35,6],[24,28,24,33],[30,1,32,6],[18,20,18,22],[18,13,18,18],[21,24,21,33],[22,1,22,6],[24,18,24,22],[25,18,25,22],[7,0,7,11],[8,0,8,10],[16,8,16,33],[17,8,17,33],[21,1,21,6],[22,8,22,12],[27,8,27,24],[27,26,27,32],[28,29,28,33],[29,8,29,18],[29,20,29,30],[28,25,28,28],[23,8,23,11],[28,1,28,6],[23,1,26,6],[23,23,23,27],[23,28,23,33],[23,18,23,22],[23,12,23,17],[24,8,24,11],[25,8,25,11],[26,8,26,11],[24,12,24,17],[25,28,25,33],[27,1,27,6],[26,28,26,33],[26,23,26,27],[24,23,24,27],[28,23,28,24],[11,0,15,2],[14,3,15,7],[12,8,12,33],[19,1,20,6],[19,8,19,11],[19,12,19,14],[19,19,19,22],[14,8,14,10],[15,11,15,20],[14,24,14,33],[15,8,15,10],[15,21,15,23],[15,24,15,33],[11,3,12,7],[13,3,13,7],[17,1,17,6],[19,15,19,18],[16,1,16,6],[13,8,13,33],[11,9,11,15],[14,11,14,19],[14,21,14,23],[18,1,18,6],[18,8,18,12],[51,26,51,29],[51,30,51,33],[51,0,54,2],[52,26,54,29],[52,30,54,33],[50,1,50,6],[50,9,50,10],[19,23,19,26],[19,27,20,30],[19,31,20,32],[19,33,20,33],[20,8,20,11],[20,12,20,14],[20,15,20,18],[20,19,20,22],[20,23,20,26],[49,1,49,6],[47,1,47,6],[36,1,36,6],[37,1,37,6],[29,1,29,6],[22,14,22,32],[34,12,34,33],[49,9,49,12],[30,8,30,11],[31,12,31,33],[33,12,33,19],[49,14,49,17],[48,1,48,6],[40,1,41,6],[47,8,47,16],[48,8,48,16],[47,18,47,23],[48,18,48,23],[47,25,47,33],[48,25,48,33],[44,1,44,33],[42,0,43,2],[42,3,42,33],[43,3,43,33],[40,8,41,33],[35,12,35,33],[30,21,30,33],[39,8,39,33],[36,8,36,18],[37,8,37,18],[36,20,36,32],[37,20,37,32],[8,12,8,13],[38,0,39,0],[38,7,39,7],[38,1,39,6],[38,8,38,33],[25,12,25,17],[26,12,26,17],[28,21,28,22],[33,8,33,11],[28,8,28,17],[33,21,33,33],[34,8,34,11],[26,18,26,22],[25,23,25,27],[31,8,31,11],[32,8,32,11],[32,12,32,33]]}
["様式701-01(2)",null,null,null,null,null,null,null,null,null,null,null,null,null,null,null,null,null,null,null,null,null,{"$f":"QR_SJIS(BI12:BI46)","v":{"$error":"#NAME?"}}]
[]
[]
["コンクリートの曲げ強度試験依頼書\n(JNLA標章付き)"]
[]
[null,null,null,null,null,null,null,null,null,null,null,null,null,null,null,null,null,null,null,null,null,null,null,null,null,null,null,null,null,null,null,null,null,null,null,null,null,null,null,null,null,null,null,null,null,null,null,null,null,null,null,null,null,null,null,null,null,null,null,null,null,null,null,null,null,null,"１ 必要　　・　２ 不必要","１ 不必要 ・ ２ 片面研磨 ・ ３ 両面研磨 ・ ４ その他","    ×   ×    ","琉栄生コン株式会社(国頭工場)"]
[null,null,null,null,null,null,null,null,null,null,null,null,null,null,null,null,null,null,null,null,null,null,null,null,null,null,null,null,null,null,null,null,null,null,null,null,null,null,null,null,null,null,null,null,null,null,null,null,null,null,null,null,null,null,null,null,null,null,null,null,null,null,null,null,null,null,"① 必要　　・　２ 不必要","① 不必要 ・ ２ 片面研磨 ・ ３ 両面研磨 ・ ４ その他"," 150×150×530","本部生コン株式会社"]
["沖縄県生コンクリート工業組合",null,null,null,null,null,null,null,null,null,null,null,null,null,null,null,null,null,null,null,null,null,null,null,null,null,null,null,null,null,null,null,null,null,null,null,null,null,null,null,null,null,null,null,null,null,null,null,null,null,null,null,null,null,null,null,null,null,null,null,null,null,null,null,null,null,"１ 必要　　・　② 不必要","１ 不必要 ・ ② 片面研磨 ・ ３ 両面研磨 ・ ４ その他"," 150×150×532","株式会社カイコン"]
["中南部地区共同試験所",null,null,null,null,null,null,null,null,null,null,null,"御中",null,null,null,null,null,null,null,null,null,null,null,null,null,null,null,null,null,null,null,null,null,null,null,null,null,null,null,null,null,null,null,null,null,null,null,null,null,null,null,null,null,null,null,null,null,null,null,null,null,null,null,null,null,null,"１ 不必要 ・ ２ 片面研磨 ・ ③ 両面研磨 ・ ４ その他"," φ150×300","協和工業株式会社"]
[null,null,null,null,null,null,null,null,null,null,null,null,null,null,null,null,null,null,null,null,null,null,null,null,null,null,null,null,null,null,null,null,null,null,null,null,null,null,null,null,null,null,null,null,null,null,null,null,null,null,null,null,null,null,null,null,null,null,null,null,null,null,null,null,null,null,"１ 無 ・ ２ 有","１ 不必要 ・ ２ 片面研磨 ・ ３ 両面研磨 ・ ④ その他",null,"株式会社進建"]
[null,null,null,null,null,null,null,null,null,null,null,null,null,null,null,null,null,null,null,null,null,null,null,null,null,null,null,null,null,null,null,null,null,null,null,null,null,null,null,null,null,null,null,null,null,null,null,null,null,null,null,null,null,null,null,null,null,null,null,null,null,null,null,null,null,null,"① 無 ・ ２ 有",null,"１ 当所で処分　・ ２ その他","株式会社東生コン工業"]
["依　頼　者　",null,null,"住  所",null,null,null,null,"〒",null,null,null,null,null,null,null,null,null,null,null,null,null,null,null,null,null,null,null,null,null,null,null,null,null,null,null,null,null,null,null,null,null,null,null,null,null,null,null,null,null,{"$f":"J12","v":0},null,null,null,null,null,null,null,null,null,{"$f":"IF(AY12=\"\",0,AY12)","v":0},null,null,null,null,null,"１ 無 ・ ② 有","１ 標準養生 ・ ２ 現場水中養生 ・ ３ その他","① 当所で処分　・ ２ その他","琉栄生コン株式会社(名護工場)"]
[null,null,null,null,null,null,null,null,null,null,null,null,null,null,null,null,null,null,null,null,null,null,null,null,null,null,null,null,null,null,null,null,null,null,null,null,null,null,null,null,null,null,null,null,null,null,null,null,null,null,{"$f":"I13","v":0},null,null,null,null,null,null,null,null,null,{"$f":"IF(AY13=\"\",0,AY13)","v":0},null,null,null,null,null,null,"① 標準養生 ・ ２ 現場水中養生 ・ ３ その他","１ 当所で処分　・ ② その他"]
[null,null,null,"会社名",null,null,null,null,null,null,null,null,null,null,null,null,null,null,null,null,null,null,null,null,null,null,null,null,null,null,null,null,null,null,null,null,null,null,null,null,null,null,null,null,null,null,null,null,null,null,{"$f":"I14","v":0},null,null,null,null,null,null,null,null,null,0,null,null,null,null,null,"１ 標準養生 ・   ２ 室外水中   ・ ３ その他","１ 標準養生 ・ ② 現場水中養生 ・ ３ その他",null,"北陽生コンクリート株式会社"]
[null,null,null,"担当者",null,null,null,null,"所属",null,null,null,null,null,null,null,null,null,null,null,null,"氏名",null,null,null,null,null,null,null,null,null,null,null,null,null,null,null,null,null,null,null,null,null,null,null,null,null,null,null,null,{"$f":"I17","v":0},null,null,null,null,null,null,null,null,null,0,null,null,null,null,null,"① 標準養生 ・   ２ 室外水中   ・ ３ その他","１ 標準養生 ・ ２ 現場水中養生 ・ ③ その他",null,"沖縄セメント工業㈱(金武工場)"]
[null,null,null,null,null,null,null,null,"ＴＥＬ",null,null,null,null,null,null,null,null,null,null,null,null,"ＦＡＸ",null,null,null,null,null,null,null,null,null,null,null,null,null,null,null,null,null,null,null,null,null,null,null,null,null,null,null,null,{"$f":"I18","v":0},null,null,null,null,null,null,null,null,null,0,null,null,null,null,null,"１ 標準養生 ・   ② 室外水中   ・ ３ その他",null,null,"バルコン株式会社"]
[null,"工事名称",null,null,null,null,null,null,null,null,null,null,null,null,null,null,null,null,null,null,null,null,null,null,null,null,null,null,null,null,null,null,null,null,null,null,null,null,null,null,null,null,null,null,null,null,null,null,null,null,{"$f":"Y19","v":"① 必要　　・　２ 不必要"},null,null,null,null,null,null,null,null,null,"① 必要　　・　２ 不必要",null,null,null,null,null,"１ 標準養生 ・   ２ 室外水中   ・ ③ その他","１ 郵送　　  ・  ２ その他",null,"株式会社キョウリツ"]
[null,"打設箇所",null,null,null,null,null,null,null,null,null,null,null,null,null,null,null,null,null,null,null,null,null,null,null,null,null,null,null,null,null,null,null,null,null,null,null,null,null,null,null,null,null,null,null,null,null,null,null,null,{"$f":"I21","v":"舗装"},null,null,null,null,null,null,null,null,null,"舗装",null,null,null,null,null,null,"① 郵送　　  ・  ２ その他",null,"有限会社田原コンクリート工業"]
[null,"試験方法",null,null,null,null,null,null,"JIS A 1106:",null,null,null,null,2018,null,null,null,null,null,null,"標章",null,null,null,"① 必要　　・　２ 不必要",null,null,null,null,null,null,null,null,null,null,null,null,null,null,null,null,null,null,null,null,null,null,null,null,null,{"$f":"M21","v":"曲げ4.5"},null,null,null,null,null,null,null,null,null,"曲げ4.5",null,null,null,null,null,null,"１ 郵送　 　 ・  ② その他",null,"有限会社知念産業"]
[null,"呼び方･形状･個数",null,null,null,null,null,null,"コンクリートの\n種類による記号",null,null,null,"呼び強度",null,null,"スランプ",null,null,null,"骨材の\n最大寸法",null,null,null,"セメントの種\n類による記号",null,null,null," 150×150×530 ",null,null,null,3,null,"本",null,null,null,null,null,null,null,null,null,null,null,null,null,null,null,null,{"$f":"P21","v":0},null,null,null,null,null,null,null,null,null,0,null,null,null,null,null,null,null,null,"協栄生コンクリート株式会社"]
[null,null,null,null,null,null,null,null,"舗装",null,null,null,"曲げ4.5",null,null,null,null,null,null,null,null,null,null,null,null,null,null,null,null,null,null,null,null,null,null,null,null,null,null,null,null,null,null,null,null,null,null,null,null,null,{"$f":"T21","v":0},null,null,null,null,null,null,null,null,null,0,null,null,null,null,null,null,"１ 希望なし  ・  ２ 希望あり",null,"有限会社海邦生コン工業"]
[null,"作製日",null,null,null,null,null,null,null,null,null,null,null,null,null,null,null,null,"製造工場",null,null,null,null,null,null,null,null,null,null,null,null,null,null,null,null,null,null,null,null,null,null,null,null,null,null,null,null,null,null,null,{"$f":"X21","v":0},null,null,null,null,null,null,null,null,null,0,null,null,null,null,null,null,"① 希望なし  ・  ２ 希望あり",null,"球陽生コンクリート㈱(松本工場)"]
[null,"試料の識別",null,null,null,null,null,null,"１ 無 ・ ２ 有",null,null,null,null,"（",null,null,null,null,null,null,null,null,null,null,null,null,null,null,null,null,null,null,null,"）",null,null,null,null,null,null,null,null,null,null,null,null,null,null,null,null,{"$f":"I22","v":"00:00:00"},null,null,null,null,null,null,null,null,null,0,null,null,null,null,null,null,"１ 希望なし  ・  ② 希望あり",null,"㈱山城生コンクリート工業(中部工場)"]
[null,"フレッシュ\nコンクリート\n実測値",null,null,null,null,null,null,"供試体の\n番　　号",null,null,null,"スランプ\n(cm)",null,null,null,null,null,"空気量\n(％)",null,null,null,null,"塩化物含有量\n(㎏/㎥)",null,null,null,null,"コンクリート温度\n(℃)",null,null,null,null,null,null,null,null,null,null,null,null,null,null,null,null,null,null,null,null,null,{"$f":"Y22","v":0},null,null,null,null,null,null,null,null,null,0,null,null,null,null,null,null,null,null,"有限会社コザ生コン工業"]
[null,null,null,null,null,null,null,null,"1",null,null,null,null,null,null,null,null,null,null,null,null,null,null,null,null,null,null,null,null,null,null,null,null,null,null,null,null,null,null,null,null,null,null,null,null,null,null,null,null,null,{"$f":"O23","v":0},null,null,null,null,null,null,null,null,null,0,null,null,null,null,null,null,"１ そのまま試験(標章無)     ・   ２ 試験せず持ち帰る",null,"沖縄セメント工業㈱(嘉手納工場)"]
[null,null,null,null,null,null,null,null,"2",null,null,null,null,null,null,null,null,null,null,null,null,null,null,null,null,null,null,null,null,null,null,null,null,null,null,null,null,null,null,null,null,null,null,null,null,null,null,null,null,null,{"$f":"I25","v":"1"},null,null,null,null,null,null,null,null,null,"1",null,null,null,null,null,null,"① そのまま試験(標章無)     ・   ２ 試験せず持ち帰る",null,"有限会社大山生コンクリート工業"]
[null,null,null,null,null,null,null,null,"3",null,null,null,null,null,null,null,null,null,null,null,null,null,null,null,null,null,null,null,null,null,null,null,null,null,null,null,null,null,null,null,null,null,null,null,null,null,null,null,null,null,{"$f":"I26","v":"2"},null,null,null,null,null,null,null,null,null,"2",null,null,null,null,null,null,"１ そのまま試験(標章無)     ・   ② 試験せず持ち帰る",null,"南建工業株式会社"]
[null,"養生方法",null,null,null,null,null,null,"① 標準養生 ・ ２ 現場水中養生 ・ ３ その他",null,null,null,null,null,null,null,null,null,null,null,null,null,null,null,null,"（",null,null,null,null,null,null,null,"）",null,null,null,null,null,null,null,null,null,null,null,null,null,null,null,null,{"$f":"I27","v":"3"},null,null,null,null,null,null,null,null,null,"3",null,null,null,null,null,null,null,null,"沖縄セメント工業㈱(添石工場)"]
[null,"試験年月日",null,null,null,null,null,null,{"$f":"IF(AND(OR(I22=\"\",I22=\"年月日\"),V29=\"\"),\"年月日\",V29+I22)","v":"年月日"},null,null,null,null,null,null,null,null,null,"(材齢",null,null,null,null,"日)",null,"立会の有無",null,null,null,"１ 無 ・ ２ 有",null,null,null,null,null,null,null,null,null,null,null,null,null,null,null,null,null,null,null,null,{"$f":"M25","v":0},null,null,null,null,null,null,null,null,null,0,null,null,null,null,null,null,null,null,"西原産業合資会社"]
[null,"試料の処分方法",null,null,null,null,null,null,"１ 当所で処分　・ ２ その他",null,null,null,null,null,null,null,null,null,null,"(",null,null,null,null,null,null,null,null,null,null,null,"）",null,null,null,null,null,null,null,null,null,null,null,null,null,null,null,null,null,null,{"$f":"M26","v":0},null,null,null,null,null,null,null,null,null,0,null,null,null,null,null,null,null,null,"株式会社山正物産"]
[null,"報告書発送先",null,null,null,null,null,null,"〒",null,null,null,null,null,null,null,null,null,null,null,null,null,null,null,null,null,null,null,null,null,null,null,null,null,null,null,null,null,null,null,null,null,null,null,null,null,null,null,null,null,{"$f":"M27","v":0},null,null,null,null,null,null,null,null,null,0,null,null,null,null,null,null,null,null,"てだこ建材株式会社"]
[null,null,null,null,null,null,null,null,"住　所",null,null,null,null,null,null,null,null,null,null,null,null,null,null,null,null,null,null,null,null,null,null,null,null,null,null,null,null,null,null,null,null,null,null,null,null,null,null,null,null,null,{"$f":"S25","v":0},null,null,null,null,null,null,null,null,null,0,null,null,null,null,null,null,null,null,"株式会社沖縄コンクリート(那覇工場)"]
[null,null,null,null,null,null,null,null,"会社名",null,null,null,null,null,null,null,null,null,null,null,null,null,null,null,null,null,null,null,null,null,null,null,null,null,null,null,null,null,null,null,null,null,null,null,null,null,null,null,null,null,{"$f":"S26","v":0},null,null,null,null,null,null,null,null,null,0,null,null,null,null,null,null,null,null,"球陽生コンクリート㈱(安謝工場)"]
[null,"請求書発送先",null,null,null,null,null,null,"〒",null,null,null,null,null,null,null,null,null,null,null,null,null,null,null,null,null,null,null,null,null,null,null,null,null,null,null,null,null,null,null,null,null,null,null,null,null,null,null,null,null,{"$f":"S27","v":0},null,null,null,null,null,null,null,null,null,0,null,null,null,null,null,null,null,null,"㈱山城生コンクリート工業(那覇工場)"]
[null,null,null,null,null,null,null,null,"住　所",null,null,null,null,null,null,null,null,null,null,null,null,null,null,null,null,null,null,null,null,null,null,null,null,null,null,null,null,null,null,null,null,null,null,null,null,null,null,null,null,null,{"$f":"X25","v":0},null,null,null,null,null,null,null,null,null,0,null,null,null,null,null,null,null,null,"琉球生コン株式会社"]
[null,null,null,null,null,null,null,null,"会社名",null,null,null,null,null,null,null,null,null,null,null,null,null,null,null,null,null,null,null,null,null,null,null,null,null,null,null,null,null,null,null,null,null,null,null,null,null,null,null,null,null,{"$f":"X26","v":0},null,null,null,null,null,null,null,null,null,0,null,null,null,null,null,null,null,null,"大野産業株式会社"]
[null,"報告書発送方法",null,null,null,null,null,null,"１ 郵送　　  ・  ２ その他",null,null,null,null,null,null,null,null,null,null,"（",null,null,null,null,null,null,null,null,null,null,null,null,null,"）",null,null,null,null,null,null,null,null,null,null,null,null,null,null,null,null,{"$f":"X27","v":0},null,null,null,null,null,null,null,null,null,0,null,null,null,null,null,null,null,null,"株式会社儀間生コン"]
[null,"報告書発送希望日",null,null,null,null,null,null,"１ 希望なし  ・  ２ 希望あり",null,null,null,null,null,null,null,null,null,null,"（",null,null,null,null,null,null,null,null,null,null,null,null,null,"）",null,null,null,null,null,null,null,null,null,null,null,null,null,null,null,null,{"$f":"AC25","v":0},null,null,null,null,null,null,null,null,null,0,null,null,null,null,null,null,null,null,"株式会社技建"]
[null,"報告書備考欄\nへの記載事項",null,null,null,null,null,null,null,null,null,null,null,null,null,null,null,null,null,null,null,null,null,null,null,null,null,null,null,null,null,null,null,null,null,null,null,null,null,null,null,null,null,null,null,null,null,null,null,null,{"$f":"AC26","v":0},null,null,null,null,null,null,null,null,null,0,null,null,null,null,null,null,null,null,"株式会社大城生コン工業"]
[null,null,null,null,null,null,null,null,null,null,null,null,null,null,null,null,null,null,null,null,null,null,null,null,null,null,null,null,null,null,null,null,null,null,null,null,null,null,null,null,null,null,null,null,null,null,null,null,null,null,{"$f":"AC27","v":0},null,null,null,null,null,null,null,null,null,0,null,null,null,null,null,null,null,null,"株式会社トミコン"]
[null,"供試体の許容差が\n外れた場合の処置",null,null,null,null,null,null,"１ そのまま試験(標章無)     ・   ２ 試験せず持ち帰る",null,null,null,null,null,null,null,null,null,null,null,null,null,null,null,null,null,null,null,null,null,null,null,null,null,null,null,null,null,null,null,null,null,null,null,null,null,null,null,null,null,{"$f":"I28","v":"① 標準養生 ・ ２ 現場水中養生 ・ ３ その他"},null,null,null,null,null,null,null,null,null,"① 標準養生 ・ ２ 現場水中養生 ・ ３ その他",null,null,null,null,null,null,null,null,"株式会社沖縄コンクリート(西崎工場)"]
[null,null,null,null,null,null,null,null,null,null,null,null,null,null,null,null,null,null,null,null,null,null,null,null,null,null,null,null,null,null,null,null,null,null,null,null,null,null,null,null,null,null,null,null,null,null,null,null,null,null,{"$f":"AA28","v":0},null,null,null,null,null,null,null,null,null,0,null,null,null,null,null,null,null,null,"西崎生コン株式会社"]
["備　考",null,null,null,null,null,null,null,null,null,null,null,null,null,null,null,null,null,null,null,null,null,null,null,null,null,null,null,null,null,null,null,null,null,null,null,null,null,null,null,null,null,null,null,null,null,null,null,null,null,{"$f":"I29","v":"年月日"},null,null,null,null,null,null,null,null,null,"年月日",null,null,null,null,null,null,null,null,"株式会社南成生コン工業"]
[null,null,null,null,null,null,null,null,null,null,null,null,null,null,null,null,null,null,null,null,null,null,null,null,null,null,null,null,null,null,null,null,null,null,null,null,null,null,null,null,null,null,null,null,null,null,null,null,null,null,{"$f":"V29","v":0},null,null,null,null,null,null,null,null,null,0]
[null,null,null,null,null,null,null,null,null,null,null,null,null,null,null,null,null,null,null,null,null,null,null,null,null,null,null,null,null,null,null,null,null,null,null,null,null,null,null,null,null,null,null,null,null,null,null,null,null,null,{"$f":"I39","v":0},null,null,null,null,null,null,null,null,null,0,null,null,null,null,null,null,null,null,"久米島工業開発株式会社"]
[null,null,null,null,null,null,null,null,null,null,null,null,null,null,null,null,null,null,null,null,null,null,null,null,null,null,null,null,null,null,null,null,null,null,null,null,null,null,null,null,null,null,null,null,null,null,null,null,null,null,{"$f":"I40","v":0},null,null,null,null,null,null,null,null,null,0,null,null,null,null,null,null,null,null,"久米生コン株式会社"]
[null,"共同試験所記入欄"]
[null,"受付日",null,null,null,null,null,null,"年　　月　　日",null,null,null,null,null,null,null,null,null,"試験番号",null,null,null,null,null,null,null,null,null,null,null,null,null,null,null,null,null,null,null,null,null,null,null,null,null,null,null,null,null,null,null,null,null,null,null,null,null,null,null,null,null,{"$f":"IF(AY48=\"\",0,AY48)","v":0},null,null,null,null,null,null,null,null,"石垣生コンクリート工業株式会社"]
[null,"試料搬入日",null,null,null,null,null,null,"年　　月　　日",null,null,null,null,null,null,null,null,null,"納期",null,null,null,null,null,null,"年　　月　　日",null,null,null,null,null,null,null,null,null,null,null,null,null,null,null,null,null,null,null,null,null,null,null,null,null,null,null,null,null,null,null,null,null,null,0,null,null,null,null,null,null,null,null,"共立生コン工業株式会社"]
[null,"試料の運搬方法",null,null,null,null,null,null,null,"製造工場",null,null,null,"・","宅配便",null,null,null,"・","その他（",null,null,null,null,null,null,null,null,null,null,null,null,null,"）",null,null,null,null,null,null,null,null,null,null,null,null,null,null,null,null,null,null,null,null,null,null,null,null,null,null,0,null,null,null,null,null,null,null,null,"株式会社創進コンクリート"]
[null,"受入状態",null,null,null,null,null,null,null,"湿布",null,null,"有","・","無",null,"欠陥の有無",null,null,null,null,null,"無","・","有","(",null,null,null,null,null,null,null,")",null,null,null,null,null,null,null,null,null,null,null,null,null,null,null,null,null,null,null,null,null,null,null,null,null,null,0,null,null,null,null,null,null,null,null,"第一生コンクリート株式会社"]
["備　考",null,null,null,null,null,null,null,null,null,null,null,null,null,null,null,null,null,null,null,null,null,null,null,null,null,"試験所所長",null,null,null,"受付者",null,null,null,null,null,null,null,null,null,null,null,null,null,null,null,null,null,null,null,null,null,null,null,null,null,null,null,null,null,0,null,null,null,null,null,null,null,null,"株式会社大米建設(八重山工場)"]
[null,null,null,null,null,null,null,null,null,null,null,null,null,null,null,null,null,null,null,null,null,null,null,null,null,null,null,null,null,null,null,null,null,null,null,null,null,null,null,null,null,null,null,null,null,null,null,null,null,null,null,null,null,null,null,null,null,null,null,null,0,null,null,null,null,null,null,null,null,"八重山生コン工業株式会社"]
[null,null,null,null,null,null,null,null,null,null,null,null,null,null,null,null,null,null,null,null,null,null,null,null,null,null,null,null,null,null,null,null,null,null,null,null,null,null,null,null,null,null,null,null,null,null,null,null,null,null,null,null,null,null,null,null,null,null,null,null,0]
[null,null,null,null,null,null,null,null,null,null,null,null,null,null,null,null,null,null,null,null,null,null,null,null,null,null,null,null,null,null,null,null,null,null,null,null,null,null,null,null,null,null,null,null,null,null,null,null,null,null,null,null,null,null,null,null,null,null,null,null,0,null,null,null,null,null,null,null,null,"株式会社協栄生コン"]
[null,null,null,null,null,null,null,null,null,null,null,null,null,null,null,null,null,null,null,null,null,null,null,null,null,null,null,null,null,null,null,null,null,null,null,null,null,null,null,null,null,null,null,null,null,null,null,null,null,null,null,null,null,null,null,null,null,null,null,null,0,null,null,null,null,null,null,null,null,"有限会社昭和建設工業"]
[null,null,null,null,null,null,null,null,null,null,null,null,null,null,null,null,null,null,null,null,null,null,null,null,null,null,null,null,null,null,null,null,null,null,null,null,null,null,null,null,null,null,null,null,null,null,null,null,null,null,null,null,null,null,null,null,null,null,null,null,0,null,null,null,null,null,null,null,null,"株式会社大米建設(宮古工場)"]
[null,null,null,null,null,null,null,null,null,null,null,null,null,null,null,null,null,null,null,null,null,null,null,null,null,null,null,null,null,null,null,null,null,null,null,null,null,null,null,null,null,null,null,null,null,null,null,null,null,null,null,null,null,null,null,null,null,null,null,null,0,null,null,null,null,null,null,null,null,"株式会社平良土建"]
[null,null,null,null,null,null,null,null,null,null,null,null,null,null,null,null,null,null,null,null,null,null,null,null,null,null,null,null,null,null,null,null,null,null,null,null,null,null,null,null,null,null,null,null,null,null,null,null,null,null,null,null,null,null,null,null,null,null,null,null,0,null,null,null,null,null,null,null,null,"株式会社宮古生コン"]
[null,null,null,null,null,null,null,null,null,null,null,null,null,null,null,null,null,null,null,null,null,null,null,null,null,null,null,null,null,null,null,null,null,null,null,null,null,null,null,null,null,null,null,null,null,null,null,null,null,null,null,null,null,null,null,null,null,null,null,null,0,null,null,null,null,null,null,null,null,"株式会社大栄生コン"]
[null,null,null,null,null,null,null,null,null,null,null,null,null,null,null,null,null,null,null,null,null,null,null,null,null,null,null,null,null,null,null,null,null,null,null,null,null,null,null,null,null,null,null,null,null,null,null,null,null,null,null,null,null,null,null,null,null,null,null,null,0,null,null,null,null,null,null,null,null,"有限会社狩俣砕石"]
[null,null,null,null,null,null,null,null,null,null,null,null,null,null,null,null,null,null,null,null,null,null,null,null,null,null,null,null,null,null,null,null,null,null,null,null,null,null,null,null,null,null,null,null,null,null,null,null,null,null,null,null,null,null,null,null,null,null,null,null,0]
[null,null,null,null,null,null,null,null,null,null,null,null,null,null,null,null,null,null,null,null,null,null,null,null,null,null,null,null,null,null,null,null,null,null,null,null,null,null,null,null,null,null,null,null,null,null,null,null,null,null,null,null,null,null,null,null,null,null,null,null,0]
[null,null,null,null,null,null,null,null,null,null,null,null,null,null,null,null,null,null,null,null,null,null,null,null,null,null,null,null,null,null,null,null,null,null,null,null,null,null,null,null,null,null,null,null,null,null,null,null,null,null,null,null,null,null,null,null,null,null,null,null,0]
[null,null,null,null,null,null,null,null,null,null,null,null,null,null,null,null,null,null,null,null,null,null,null,null,null,null,null,null,null,null,null,null,null,null,null,null,null,null,null,null,null,null,null,null,null,null,null,null,null,null,null,null,null,null,null,null,null,null,null,null,0]
[null,null,null,null,null,null,null,null,null,null,null,null,null,null,null,null,null,null,null,null,null,null,null,null,null,null,null,null,null,null,null,null,null,null,null,null,null,null,null,null,null,null,null,null,null,null,null,null,null,null,null,null,null,null,null,null,null,null,null,null,0]
[null,null,null,null,null,null,null,null,null,null,null,null,null,null,null,null,null,null,null,null,null,null,null,null,null,null,null,null,null,null,null,null,null,null,null,null,null,null,null,null,null,null,null,null,null,null,null,null,null,null,null,null,null,null,null,null,null,null,null,null,0]
[null,null,null,null,null,null,null,null,null,null,null,null,null,null,null,null,null,null,null,null,null,null,null,null,null,null,null,null,null,null,null,null,null,null,null,null,null,null,null,null,null,null,null,null,null,null,null,null,null,null,null,null,null,null,null,null,null,null,null,null,0]
[null,null,null,null,null,null,null,null,null,null,null,null,null,null,null,null,null,null,null,null,null,null,null,null,null,null,null,null,null,null,null,null,null,null,null,null,null,null,null,null,null,null,null,null,null,null,null,null,null,null,null,null,null,null,null,null,null,null,null,null,0]